fUSD/lending_fUSD_20260129
["ID","MTS","AMOUNT","RATE_DAILY","PERIOD"]
[403944912,1769683965245,-3626.64171697,0.00043583,30]
[403944913,1769683965254,-150.0,0.000436,120]
[403944914,1769683965264,-486.96,0.000436,14]
[403944915,1769683965273,-4328.82544419,0.00043603,2]
[403944916,1769683965282,-1740.76866062,0.00043603,2]
[403944917,1769683965292,-568.95038244,0.00043603,15]
[403944918,1769683965301,-161.21,0.00043632,120]
[403944919,1769683965311,-613.62,0.00043644,30]
[403944920,1769683965321,-736.1769283,0.0004369,120]
[403944921,1769683965331,-649.57687299,0.000437,120]
[403944922,1769683965340,-151.0,0.000437,120]
[403944923,1769683965350,-2000.0,0.000437,2]
[403944924,1769683965360,-151.0,0.000437,120]
[403944925,1769683965369,-151.0,0.000437,120]
[403944926,1769683965380,-151.0,0.000437,120]
[403944927,1769683965389,-151.0,0.000437,120]
[403944928,1769683965399,-151.0,0.000437,120]
[403944929,1769683965408,-151.0,0.000437,120]
[403944930,1769683965419,-196.72051846,0.000437,120]
[403944931,1769683965430,-50000.0,0.00043702,54]
[403944932,1769683965441,-50000.0,0.00043702,56]
[403944933,1769683965451,-50000.0,0.00043702,55]
[403944934,1769683965460,-50000.0,0.00043702,58]
[403944935,1769683965469,-50000.0,0.00043702,59]
[403944936,1769683965479,-10070427.22698468,0.00043703,10]
[403944937,1769683970144,-200.25,0.00017989,2]
[403944938,1769683970154,-200.25,0.00017989,2]
[403944939,1769683970163,-200.25,0.00017989,2]
[403944940,1769683970177,-200.25,0.00017989,2]
[403944941,1769683970186,-200.25,0.00017989,2]
[403944942,1769683970195,-6600.0,0.000199,7]
[403944943,1769683970205,-5932.0,0.00023707,2]
[403944944,1769683970215,-5932.0,0.00026707,2]
[403944945,1769683970224,-287.993917,0.00030702,31]
[403944946,1769683970234,-287.993917,0.00030702,31]
[403944947,1769683970243,-287.993917,0.00030702,31]
[403944948,1769683970252,-1300.0,0.000379,13]
[403944949,1769683970261,-151.0,0.00038356,120]
[403944950,1769683970271,-671.470497,0.00038356,90]
[403944951,1769683970280,-151.0,0.00038356,120]
[403944952,1769683970289,-671.470497,0.00038356,90]
[403944953,1769683970299,-217.111004,0.00038356,120]
[403944954,1769683970308,-278.640401,0.00038356,120]
[403944955,1769683970317,-188.653196,0.00038356,120]
[403944956,1769683970327,-671.470497,0.00038356,90]
[403944957,1769683970336,-278.640401,0.00038356,120]
[403944958,1769683970346,-671.470497,0.00038356,90]
[403944959,1769683970356,-172.809131,0.00039593,30]
[403944960,1769683970365,-500.0,0.00040877,60]
[403944961,1769683970374,-150.0,0.00040877,60]
[403944962,1769683970383,-150.0,0.00040877,60]
[403944963,1769683970393,-500.0,0.00040877,60]
[403944964,1769683970402,-500.0,0.00040932,60]
[403944965,1769683970412,-150.0,0.00040932,60]
[403944966,1769683970422,-150.0,0.00040932,60]
[403944967,1769683970433,-200.0,0.00040987,60]
[403944968,1769683970444,-500.0,0.00040987,60]
[403944969,1769683970454,-150.0,0.00040987,60]
[403944970,1769683970463,-509.58549515,0.00041041,60]
[403944971,1769683970473,-600.0,0.00041643,60]
[403944972,1769683970482,-151.0,0.00042095,120]
[403944973,1769683970491,-671.470497,0.00042095,90]
[403944974,1769683970499,-287.993917,0.00042095,120]
[403944975,1769683970508,-151.0,0.00042095,120]
[403944976,1769683970518,-671.470497,0.00042095,90]
[403944977,1769683970527,-287.993917,0.00042095,120]
[403944978,1769683970536,-217.111004,0.00042095,120]
[403944979,1769683970546,-278.640401,0.00042095,120]
[403944980,1769683970555,-671.470497,0.00042095,90]
[403944981,1769683970564,-287.993917,0.00042095,120]
[403944982,1769683970573,-278.640401,0.00042095,120]
[403944983,1769683970582,-671.470497,0.00042095,90]
[403944984,1769683970591,-600.0,0.00042191,60]
[403944985,1769683970600,-600.0,0.00042739,60]
[403944986,1769683970609,-1000.0,0.00043265,30]
[403944987,1769683970618,-1000.0,0.00043265,30]
[403944988,1769683970627,-1000.0,0.00043265,30]
[403944989,1769683970636,-1000.0,0.00043265,30]
[403944990,1769683970645,-1000.0,0.00043265,30]
[403944991,1769683970655,-1000.0,0.00043265,30]
[403944992,1769683970664,-617.072,0.00043265,30]
[403944993,1769683970673,-1000.0,0.00043265,90]
[403944994,1769683970682,-1000.0,0.00043265,90]
[403944995,1769683970692,-1000.0,0.00043265,90]
[403944996,1769683970701,-1000.0,0.00043265,90]
[403944997,1769683970710,-1723.70609471,0.00043287,120]
[403944998,1769683970720,-600.0,0.00043287,60]
[403944999,1769683970729,-598.42,0.00043287,120]
[403945000,1769683970738,-514.84657197,0.00043287,120]
[403945001,1769683970748,-287.993917,0.00043287,120]
[403945002,1769683970757,-217.111004,0.00043287,120]
[403945003,1769683970766,-500.0,0.00043287,120]
[403945004,1769683970775,-546.58,0.00043287,120]
[403945005,1769683970784,-720.75,0.00043287,120]
[403945006,1769683970793,-500.0,0.00043287,120]
[403945007,1769683970802,-598.42,0.00043287,120]
[403945008,1769683970811,-500.0,0.00043287,120]
[403945009,1769683970820,-500.0,0.00043287,120]
[403945010,1769683970829,-720.75,0.00043287,120]
[403945011,1769683970838,-598.42,0.00043287,120]
[403945012,1769683970848,-546.58,0.00043287,120]
[403945013,1769683970857,-217.111004,0.00043287,120]
[403945014,1769683970866,-151.0,0.00043287,120]
[403945015,1769683970875,-500.0,0.00043287,120]
[403945016,1769683970884,-500.0,0.00043287,120]
[403945017,1769683970893,-598.49019618,0.00043287,120]
[403945018,1769683970903,-720.75,0.00043287,120]
[403945019,1769683970911,-546.58,0.00043287,120]
[403945020,1769683970921,-671.470497,0.00043287,90]
[403945021,1769683970930,-318.53077632,0.00043287,120]
[403945022,1769683970939,-517.91390676,0.00043287,120]
[403945023,1769683970948,-153.979672,0.00043287,120]
[403945024,1769683970957,-720.75,0.00043287,120]
[403945025,1769683970967,-546.58,0.00043287,120]
[403945026,1769683970976,-671.470497,0.00043287,90]
[403945027,1769683970985,-720.75,0.00043287,120]
[403945028,1769683970995,-287.993917,0.00043287,120]
[403945029,1769683971005,-720.75,0.00043287,120]
[403945030,1769683971015,-671.470497,0.00043287,90]
[403945031,1769683971024,-287.993917,0.00043287,120]
[403945032,1769683971034,-546.58,0.00043287,120]
[403945033,1769683971044,-720.75,0.00043287,120]
[403945034,1769683971053,-287.993917,0.00043287,120]
[403945035,1769683971063,-546.58,0.00043287,120]
[403945036,1769683971072,-720.75,0.00043287,120]
[403945037,1769683971083,-546.58,0.00043287,120]
[403945038,1769683971092,-720.75,0.00043287,120]
[403945039,1769683971101,-546.58,0.00043287,120]
[403945040,1769683971110,-151.0,0.00043287,120]
[403945041,1769683971120,-671.470497,0.00043287,90]
[403945042,1769683971129,-217.111004,0.00043287,120]
[403945043,1769683971138,-720.88446065,0.00043287,120]
[403945044,1769683971148,-546.58,0.00043287,120]
[403945045,1769683971157,-151.0,0.00043287,120]
[403945046,1769683971167,-671.470497,0.00043287,90]
[403945047,1769683971313,-546.58,0.00043287,120]
[403945048,1769683971322,-151.0,0.00043287,120]
[403945049,1769683971331,-546.58,0.00043287,120]
[403945050,1769683971341,-671.470497,0.00043287,90]
[403945051,1769683971350,-546.58,0.00043287,120]
[403945052,1769683971359,-287.993917,0.00043287,120]
[403945053,1769683971368,-500.0,0.00043287,120]
[403945054,1769683971377,-217.111004,0.00043287,120]
[403945055,1769683971387,-278.640401,0.00043287,120]
[403945056,1769683971396,-546.58,0.00043287,120]
[403945057,1769683971405,-287.993917,0.00043287,120]
[403945058,1769683971414,-500.0,0.00043287,120]
[403945059,1769683971423,-217.111004,0.00043287,120]
[403945060,1769683971431,-546.58,0.00043287,120]
[403945061,1769683971440,-278.640401,0.00043287,120]
[403945062,1769683971449,-500.0,0.00043287,120]
[403945063,1769683971458,-546.58,0.00043287,120]
[403945064,1769683971467,-671.470497,0.00043287,90]
[403945065,1769683971476,-217.111013,0.00043287,120]
[403945066,1769683971486,-287.993917,0.00043287,120]
[403945067,1769683971495,-278.640401,0.00043287,120]
[403945068,1769683971504,-500.0,0.00043287,120]
[403945069,1769683971513,-546.79901622,0.00043287,120]
[403945070,1769683971522,-671.470497,0.00043287,90]
[403945071,1769683971532,-500.0,0.00043287,120]
[403945072,1769683971541,-500.0,0.00043287,120]
[403945073,1769683971550,-500.0,0.00043287,120]
[403945074,1769683971559,-671.470497,0.00043287,90]
[403945075,1769683971568,-500.0,0.00043287,120]
[403945076,1769683971577,-287.993917,0.00043287,120]
[403945077,1769683971586,-500.0,0.00043287,120]
[403945078,1769683971595,-278.640401,0.00043287,120]
[403945079,1769683971604,-500.0,0.00043287,120]
[403945080,1769683971613,-287.993917,0.00043287,120]
[403945081,1769683971622,-500.0,0.00043287,120]
[403945082,1769683971631,-278.640401,0.00043287,120]
[403945083,1769683971640,-500.0,0.00043287,120]
[403945084,1769683971650,-500.0,0.00043287,120]
[403945085,1769683971659,-287.993925,0.00043287,120]
[403945086,1769683971668,-500.0,0.00043287,120]
[403945087,1769683971677,-278.640401,0.00043287,120]
[403945088,1769683971687,-671.470497,0.00043287,90]
[403945089,1769683971696,-500.0,0.00043287,120]
[403945090,1769683971706,-168.3888056,0.00043542,45]
[403945091,1769683971715,-162.380719,0.00043543,120]
[403945092,1769683971726,-151.0,0.00043547,60]
[403945093,1769683971735,-156.587,0.00043547,120]
[403945094,1769683971745,-150.0,0.00043706,120]
[403945095,1769683971754,-501.82222884,0.000438,30]
[403945096,1769683971764,-594.35322063,0.000438,30]
[403945097,1769683971773,-153.51382384,0.000438,120]
[403945098,1769683971783,-299715.15377806,0.00043825,10]
[403945099,1769683971813,-5932.0,0.00029707,2]
[403945100,1769683971823,-671.470497,0.00043287,90]
[403945101,1769683971833,-5432996.36209148,0.00043825,10]
[403945102,1769683971846,-31416.8298474,0.00043825,10]
[403945103,1769683971875,-500.0,0.00040932,60]
[403945104,1769683971885,-42.46609112,0.00041041,60]
[403945105,1769683971896,-107.53390888,0.00041041,60]
[403945106,1769683971905,-500.0,0.00043287,120]
[403945107,1769683971915,-500.0,0.00043287,120]
[403945108,1769683971924,-2580.72479145,0.00043825,10]
[403945109,1769683971948,-500.0,0.00040987,60]
[403945110,1769683971958,-1313.69302755,0.00043825,10]
[403945111,1769683972453,-725.91164319,0.00032707,2]
[403945112,1769683972468,-221.53219752,0.00020048,2]
[403945113,1769683972477,-1627.98135681,0.00032707,2]
[403945114,1769683972486,-237.6063,0.00036888,7]
[403945115,1769683972497,-278.640401,0.00038356,120]
[403945116,1769683972507,-170.08287297,0.00038356,120]
[403945117,1769683972570,-1486.4146684,0.00018638,2]
[403945118,1769683972580,-3290.98876703,0.00038356,120]
[403945119,1769683972589,-817.820837,0.00038356,120]
[403945120,1769683972598,-151.0,0.00038356,120]
[403945121,1769683972607,-151.0,0.00038356,10]
[403945122,1769683972616,-278.640401,0.00038356,120]
[403945123,1769683972626,-151.0,0.00038356,120]
[403945124,1769683972635,-3461.07164,0.00038356,120]
[403945125,1769683972644,-500.0,0.00040877,60]
[403945126,1769683972653,-150.0,0.00040877,60]
[403945127,1769683972663,-500.0,0.00040932,60]
[403945128,1769683972672,-150.0,0.00040932,60]
[403945129,1769683972681,-500.0,0.00040987,60]
[403945130,1769683972691,-150.0,0.00040987,60]
[403945131,1769683972700,-200.99227331,0.00041041,60]
[403945132,1769683972709,-500.0,0.00041041,60]
[403945133,1769683972718,-150.0,0.00041041,60]
[403945134,1769683972728,-150.0,0.00041096,60]
[403945135,1769683972737,-500.0,0.00041096,60]
[403945136,1769683972746,-252.80016724,0.00041096,60]
[403945137,1769683972755,-250.0,0.00041151,60]
[403945138,1769683972764,-500.0,0.00041151,60]
[403945139,1769683972774,-500.0,0.00041206,60]
[403945140,1769683972783,-500.0,0.00041261,60]
[403945141,1769683973088,-500.0,0.00041315,60]
[403945142,1769683973108,-500.0,0.0004137,60]
[403945143,1769683973119,-500.0,0.00041425,60]
[403945144,1769683973129,-500.0,0.0004148,60]
[403945145,1769683973139,-471.54143877,0.00041535,60]
[403945146,1769683973149,-278.640401,0.00042095,120]
[403945147,1769683973159,-3461.07164,0.00042095,120]
[403945148,1769683973170,-817.820837,0.00042095,120]
[403945149,1769683973179,-151.0,0.00042095,120]
[403945150,1769683973189,-278.640401,0.00042095,120]
[403945151,1769683973197,-151.0,0.00042095,10]
[403945152,1769683973204,-1300.0,0.000429,15]
[403945153,1769683973214,-1000.0,0.00043265,90]
[403945154,1769683973223,-1000.0,0.00043265,90]
[403945155,1769683973233,-671.470498,0.00043287,90]
[403945156,1769683973243,-584.05078048,0.00043287,120]
[403945157,1769683973252,-500.0,0.00043287,120]
[403945158,1769683973262,-500.0,0.00043287,120]
[403945159,1769683973272,-500.0,0.00043287,120]
[403945160,1769683973282,-278.640401,0.00043287,120]
[403945161,1769683973291,-500.0,0.00043287,120]
[403945162,1769683973301,-278.640401,0.00043287,120]
[403945163,1769683973311,-500.0,0.00043287,120]
[403945164,1769683973321,-500.0,0.00043287,120]
[403945165,1769683973330,-3461.07164,0.00043287,120]
[403945166,1769683973339,-500.0,0.00043287,120]
[403945167,1769683973349,-278.640401,0.00043287,120]
[403945168,1769683973358,-500.0,0.00043287,120]
[403945169,1769683973367,-3461.07164,0.00043287,120]
[403945170,1769683973377,-500.0,0.00043287,120]
[403945171,1769683973386,-500.0,0.00043287,120]
[403945172,1769683973396,-3461.07164,0.00043287,120]
[403945173,1769683973406,-500.0,0.00043287,120]
[403945174,1769683973416,-589.79591226,0.00043287,120]
[403945175,1769683973426,-151.0,0.00043287,120]
[403945176,1769683973435,-817.820837,0.00043287,120]
[403945177,1769683973445,-500.0,0.00043287,120]
[403945178,1769683973455,-278.640401,0.00043287,120]
[403945179,1769683973464,-194.72792766,0.00043527,90]
[403945180,1769683973473,-174.61919141,0.00043542,47]
[403945181,1769683973483,-181.08010149,0.00043542,51]
[403945182,1769683973493,-187.78006525,0.00043542,53]
[403945183,1769683973503,-2680765.62898934,0.00043825,10]
[403945184,1769683974094,-151.0,0.00016048,2]
[403945185,1769683974104,-361.12963816,0.00016756,2]
[403945186,1769683974661,-269.92100004,0.00016756,2]
[403945267,1769684837136,-427.20610053,0.00013888,2]
[403945306,1769684958815,-6694.55389947,0.00013888,2]
[403945307,1769684958839,-250.0,0.00014425,2]
[403945308,1769684958862,-200.0,0.00014501,2]
[403945309,1769684959946,-250.0,0.00014755,2]
[403945310,1769684959968,-19.78887601,0.00014863,2]
[403945311,1769684972096,-183.72445931,0.00014863,2]
[403945312,1769684972117,-185.35,0.00014963,2]
[403945313,1769684972138,-600.0,0.00014968,2]
[403945314,1769684972158,-300.0,0.00014984,2]
[403945315,1769684972182,-300.0,0.00014984,2]
[403945316,1769684972202,-1200.0,0.00014985,2]
[403945317,1769684972222,-300.0,0.00014985,2]
[403945318,1769684972241,-11417.78,0.00014986,2]
[403945319,1769684972261,-600.0,0.00015011,2]
[403945320,1769684972280,-306.04111667,0.00015011,2]
[403945321,1769684972305,-203.5133353,0.00015082,2]
[403945322,1769684972325,-250.0,0.00015277,2]
[403945323,1769684972344,-203.5133353,0.000153,2]
[403945324,1769684972364,-3112.71793022,0.0001539,2]
[403945325,1769684972384,-300.0,0.00015397,2]
[403945326,1769684972403,-19589.80569736,0.00015398,2]
[403945346,1769685032139,-3401.6187175,0.000153,2]
[403945347,1769685032148,-1200.0,0.00015397,2]
[403945348,1769685032157,-195.0,0.00015398,2]
[403945349,1769685032167,-1486.36290789,0.00015398,2]
[403945350,1769685032179,-3443.75600812,0.00015398,2]
[403945351,1769685032191,-1305.0,0.00015398,2]
[403945352,1769685032206,-930.38,0.00015398,2]
[403945360,1769685033066,-852.3945,0.00015398,2]
[403945361,1769685033079,-704.890961,0.00015398,2]
[403945362,1769685033090,-593.68559843,0.00015398,2]
[403945363,1769685033102,-13521.50843219,0.00015398,2]
[403945364,1769685033123,-14381.16753716,0.00015398,2]
[403945365,1769685033132,-250.0,0.00015399,2]
[403945366,1769685033141,-195.0,0.00015403,2]
[403945367,1769685033149,-250.28,0.00015421,2]
[403945368,1769685033158,-442.36,0.00015421,2]
[403945369,1769685033167,-250.0,0.00015441,2]
[403945370,1769685033176,-151.0,0.00015491,2]
[403945371,1769685033185,-151.0,0.00015491,2]
[403945372,1769685033194,-151.0,0.00015491,2]
[403945373,1769685033204,-151.0,0.00015491,2]
[403945374,1769685033213,-151.0,0.00015491,2]
[403945375,1769685033222,-151.0,0.00015491,2]
[403945376,1769685033232,-151.0,0.00015491,2]
[403945377,1769685033241,-151.0,0.00015491,2]
[403945378,1769685033251,-151.0,0.00015491,2]
[403945379,1769685033260,-151.0,0.00015491,2]
[403945380,1769685033270,-151.0,0.00015491,2]
[403945381,1769685033279,-151.0,0.00015491,2]
[403945382,1769685033289,-151.0,0.00015491,2]
[403945383,1769685033299,-151.0,0.00015491,2]
[403945384,1769685033308,-151.0,0.00015491,2]
[403945385,1769685033319,-151.0,0.00015491,2]
[403945386,1769685033330,-151.0,0.00015491,2]
[403945387,1769685033340,-151.0,0.00015491,2]
[403945388,1769685033350,-151.0,0.00015491,2]
[403945389,1769685033359,-151.0,0.00015491,2]
[403945390,1769685033370,-9041.66255027,0.00015497,2]
[403945391,1769685038252,-1027.89177931,0.00015497,2]
[403945392,1769685038276,-3623.96507186,0.00015497,2]
[403945393,1769685038336,-267.7187254,0.00015497,2]
[403945394,1769685038349,-4268.50187316,0.00015497,2]
[403945395,1769685038359,-273.74024812,0.00015497,2]
[403945396,1769685038372,-587.82975188,0.00015497,2]
[403945397,1769685038382,-299.99,0.00015497,2]
[403945398,1769685038392,-1222.04775605,0.00015498,2]
[403945399,1769685038405,-975.13,0.00015498,2]
[403945400,1769685038424,-17811.15224395,0.00015498,2]
[403945401,1769685038435,-3697.63,0.00015498,2]
[403945402,1769685038445,-9999.99,0.00015498,2]
[403945403,1769685038455,-5179.33,0.00015498,2]
[403945404,1769685038465,-150.99,0.00015498,2]
[403945405,1769685038475,-5478.01,0.00015498,2]
[403945406,1769685038489,-56809.72,0.00015498,2]
[403945407,1769685038499,-19167.83,0.00015498,2]
[403945408,1769685038509,-9999.99,0.00015498,2]
[403945409,1769685038518,-999.99,0.00015498,2]
[403945410,1769685038528,-24460.0,0.00015498,2]
[403945411,1769685038538,-157.00054486,0.00015499,2]
[403945412,1769685038547,-500.0,0.00015499,2]
[403945414,1769685038557,-500.0,0.00015499,2]
[403945415,1769685038566,-500.0,0.00015499,2]
[403945416,1769685038575,-500.0,0.00015499,2]
[403945417,1769685038585,-500.0,0.00015499,2]
[403945418,1769685038595,-500.0,0.00015499,2]
[403945420,1769685038605,-500.0,0.00015499,2]
[403945422,1769685038614,-500.0,0.00015499,2]
[403945423,1769685038624,-500.0,0.00015499,2]
[403945425,1769685038633,-500.0,0.00015499,2]
[403945427,1769685038643,-500.0,0.00015499,2]
[403945429,1769685038652,-500.0,0.00015499,2]
[403945431,1769685038662,-500.0,0.00015499,2]
[403945433,1769685038672,-378.35065756,0.00015499,2]
[403945435,1769685038681,-500.0,0.00015499,2]
[403945437,1769685038690,-500.0,0.00015499,2]
[403945439,1769685038699,-500.0,0.00015499,2]
[403945441,1769685038709,-500.0,0.00015499,2]
[403945443,1769685038719,-500.0,0.00015499,2]
[403945445,1769685038728,-500.0,0.00015499,2]
[403945447,1769685038738,-500.0,0.00015499,2]
[403945449,1769685038749,-500.0,0.00015499,2]
[403945451,1769685038759,-500.0,0.00015499,2]
[403945453,1769685038769,-500.0,0.00015499,2]
[403945455,1769685038778,-500.0,0.00015499,2]
[403945458,1769685038792,-500.0,0.00015499,2]
[403945460,1769685038802,-500.0,0.00015499,2]
[403945461,1769685038812,-500.0,0.00015499,2]
[403945463,1769685038822,-500.0,0.00015499,2]
[403945466,1769685038832,-500.0,0.00015499,2]
[403945468,1769685038842,-500.0,0.00015499,2]
[403945470,1769685038857,-500.0,0.00015499,2]
[403945472,1769685038868,-500.0,0.00015499,2]
[403945474,1769685038879,-500.0,0.00015499,2]
[403945476,1769685038888,-500.0,0.00015499,2]
[403945478,1769685038898,-500.0,0.00015499,2]
[403945480,1769685038908,-500.0,0.00015499,2]
[403945482,1769685038918,-200.0,0.00015499,2]
[403945484,1769685038927,-348.76,0.00015499,2]
[403945486,1769685038937,-150.99,0.00015499,2]
[403945488,1769685038946,-3826.35,0.00015499,2]
[403945490,1769685038955,-2886.16,0.00015499,2]
[403945492,1769685038965,-342.64,0.00015499,2]
[403945494,1769685038974,-395.67,0.00015499,2]
[403945496,1769685038984,-1618.31,0.00015499,2]
[403945498,1769685038994,-9999.99,0.00015499,2]
[403945500,1769685039003,-9999.99,0.00015499,2]
[403945502,1769685039012,-380.63415321,0.00015499,2]
[403945504,1769685039022,-500.0,0.00015499,2]
[403945507,1769685039033,-500.0,0.00015499,2]
[403945509,1769685039046,-2229.2,0.00015499,2]
[403945511,1769685039056,-113296.3,0.000155,2]
[403945513,1769685039065,-500.0,0.000155,2]
[403945515,1769685039074,-468.1,0.000155,2]
[403945517,1769685039084,-381.19,0.0001551,2]
[403945519,1769685039093,-381.19,0.0001556,2]
[403945521,1769685039103,-381.19,0.0001561,2]
[403945523,1769685039112,-151.0,0.00015655,2]
[403945525,1769685039121,-151.0,0.00015655,2]
[403945527,1769685039131,-151.0,0.00015656,2]
[403945529,1769685039141,-151.0,0.00015656,2]
[403945531,1769685039151,-381.19,0.0001566,2]
[403945533,1769685039161,-151.0,0.00015665,2]
[403945535,1769685039170,-151.0,0.00015665,2]
[403945537,1769685039179,-151.0,0.00015697,2]
[403945540,1769685039189,-151.0,0.00015697,2]
[403945542,1769685039198,-381.19,0.0001571,2]
[403945543,1769685039209,-381.19,0.0001576,2]
[403945546,1769685039219,-2229.2,0.00015773,2]
[403945547,1769685039228,-500.0,0.00015774,2]
[403945549,1769685039237,-185.35,0.00015794,2]
[403945552,1769685039251,-381.19,0.0001581,2]
[403945554,1769685039261,-381.19,0.00015859,2]
[403945556,1769685039271,-381.19,0.00015909,2]
[403945558,1769685039280,-381.19,0.00015959,2]
[403945560,1769685039290,-2682.49681802,0.0001596,2]
[403945562,1769685039299,-500.0,0.00015973,2]
[403945564,1769685039309,-500.0,0.00015973,2]
[403945566,1769685039318,-500.0,0.00015973,2]
[403945568,1769685039332,-539.90934846,0.00015973,2]
[403945570,1769685039342,-500.0,0.00015973,2]
[403945572,1769685039352,-500.0,0.00015973,2]
[403945574,1769685039361,-500.0,0.00015973,2]
[403945576,1769685039373,-500.0,0.00015973,2]
[403945579,1769685039382,-558.48764416,0.00015973,2]
[403945581,1769685039392,-500.0,0.00015973,2]
[403945583,1769685039402,-425.5374197,0.00015973,2]
[403945585,1769685039413,-500.0,0.00015973,2]
[403945587,1769685039423,-500.0,0.00015973,2]
[403945589,1769685039432,-500.0,0.00015973,2]
[403945591,1769685039442,-500.0,0.00015973,2]
[403945593,1769685039453,-160.19813377,0.00015973,2]
[403945595,1769685039462,-500.0,0.00015973,2]
[403945597,1769685039472,-162.98402498,0.00015973,2]
[403945599,1769685039482,-500.76243557,0.00015973,2]
[403945601,1769685039491,-500.0,0.00015973,2]
[403945603,1769685039501,-500.0,0.00015973,2]
[403945605,1769685039510,-500.56757167,0.00015973,2]
[403945607,1769685039518,-166.19258147,0.00015973,2]
[403945609,1769685039528,-500.0,0.00015973,2]
[403945611,1769685039537,-500.0,0.00015973,2]
[403945613,1769685039547,-160.19589525,0.00015973,2]
[403945615,1769685039556,-160.30040686,0.00015973,2]
[403945654,1769685040051,-500.0,0.00015973,2]
[403945656,1769685040062,-500.0,0.00015973,2]
[403945658,1769685040071,-500.0,0.00015973,2]
[403945660,1769685040080,-500.0,0.00015973,2]
[403945662,1769685040088,-500.0,0.00015973,2]
[403945664,1769685040097,-500.0,0.00015973,2]
[403945666,1769685040109,-500.0,0.00015973,2]
[403945668,1769685040119,-500.0,0.00015973,2]
[403945670,1769685040128,-500.0,0.00015973,2]
[403945672,1769685040138,-501.08401626,0.00015973,2]
[403945674,1769685040147,-500.0,0.00015973,2]
[403945676,1769685040156,-500.0,0.00015973,2]
[403945678,1769685040165,-500.0,0.00015973,2]
[403945680,1769685040174,-500.0,0.00015973,2]
[403945682,1769685040183,-381.19,0.00016009,2]
[403945684,1769685040192,-2229.2,0.00016047,2]
[403945686,1769685040201,-500.0,0.00016048,2]
[403945688,1769685040210,-381.19,0.00016059,2]
[403945690,1769685040220,-381.19,0.00016109,2]
[403945693,1769685040228,-9999.99,0.00016116,2]
[403945695,1769685040237,-381.19,0.00016159,2]
[403945697,1769685040246,-381.19,0.00016209,2]
[403945699,1769685040255,-381.19,0.00016259,2]
[403945701,1769685040264,-381.19,0.00016309,2]
[403945703,1769685040273,-2229.2,0.00016321,2]
[403945706,1769685040282,-500.0,0.00016322,2]
[403945709,1769685040291,-381.19,0.00016359,2]
[403945712,1769685040300,-420.0,0.00016399,2]
[403945714,1769685040309,-381.19,0.00016409,2]
[403945716,1769685040318,-500.0,0.00016438,2]
[403945717,1769685040328,-500.0,0.00016438,2]
[403945719,1769685040340,-500.0,0.00016438,2]
[403945722,1769685040349,-500.0,0.00016438,2]
[403945724,1769685040359,-500.0,0.00016438,2]
[403945726,1769685040368,-500.0,0.00016438,2]
[403945728,1769685040378,-500.0,0.00016438,2]
[403945730,1769685040387,-500.0,0.00016438,2]
[403945732,1769685040396,-500.0,0.00016438,2]
[403945734,1769685040407,-500.0,0.00016438,2]
[403945736,1769685040417,-500.0,0.00016438,2]
[403945738,1769685040426,-500.0,0.00016438,2]